Cogmind - Beta 11.1 @@@ ROGUE MODE // 2022.12.12 @ 05:25:52 Player: Uriel Result: Destroyed by G-34 Mercenary with Small Laser Performance ------------- Evolutions (0) 0 Regions Visited (1) 200 Robots Destroyed (9) 45 Value Destroyed (201) 201 Prototype IDs (2) 40 Alien Tech Used (0) 0 Bonus (0) 0 TOTAL SCORE: 486 Bonus ------- None Cogmind --------- Core Integrity 0/250 Matter 299/300 Energy 80/100 System Corruption 1% Temperature Cool (38) Movement Core (150) Ox2 Location -10/Materials Parts ------- > --- POWER (1) -------- (None) > --- PROPULSION (2) --- (None) > --- UTILITY (2) ------ Small Storage Unit Signal Interpreter > --- WEAPON (2) ------- EM Pulse Gun Light Assault Rifle > --- INVENTORY (8) ---- Aluminum Leg Power Shielding Particle Gun Peak State ------------ > --- POWER ------------ Light Ion Engine > --- PROPULSION ------- Light Treads Light Treads > --- UTILITY ---------- Small Storage Unit Small Storage Unit > --- WEAPON ----------- Small Laser Assault Rifle > --- INVENTORY -------- Aluminum Leg Power Shielding Light Assault Rifle [Rating: 7] Favorites ----------- Power Light Ion Engine Engine Light Ion Engine Propulsion Light Treads Treads Light Treads Wheel Compact Wheel Utility Small Storage Unit Storage Small Storage Unit Processor Signal Interpreter Weapon Small Laser Energy Gun Small Laser Ballistic Gun Assault Rifle Build | -11 -10 ------- Run | Scr Mat Slots Evolved . | . . Power . | . . Propulsion . | . . Utility . | . . Weapon . | . . Parts Attached 11 | 7 4 Power 1 | 1 . Engine 1 | 1 . Core . | . . Reactor . | . . Propulsion 3 | 3 . Treads 2 | 2 . Leg . | . . Wheel 1 | 1 . Hover . | . . Flight . | . . Utility 3 | 2 1 Device . | . . Storage 2 | 2 . Processor 1 | . 1 Hackware . | . . Protection . | . . Artifact . | . . Weapon 4 | 1 3 Energy Gun 2 | 1 1 Energy Cannon . | . . Ballistic Gun 2 | . 2 Ballistic Cannon . | . . Launcher . | . . Special Weapon . | . . Impact Weapon . | . . Slashing Weapon . | . . Piercing Weapon . | . . Special Melee Weapon . | . . Unidentified Prototypes . | . . Parts Lost 4 | . 4 Power . | . . Propulsion 2 | . 2 Utility . | . . Weapon 2 | . 2 Highest Loss Streak 3 | . 3 To Critical Strikes . | . . Average Slot Usage (%) 90 | . 90 Engine 7 | . 7 Treads 27 | . 27 Storage 18 | . 18 Processor 9 | . 9 Energy Gun 13 | . 13 Ballistic Gun 13 | . 13 Naked Turns . | . . Heaviest Build 16 | 14 16 Greatest Support 40 | 40 40 Greatest Overweight (x) . | . . Average Overweight (x) . | . . Largest Inventory Capacity 8 | 8 8 Average Capacity 7 | 7 8 Most Carried 5 | 5 4 Average Carried 3 | 2 3 Final Capacity 8 | 8 8 Final Carried 3 | 3 3 Class Distribution -------------------- 100% | Mutant Dominant Class ---------------- Mutant | -10/Materials Resources | -11 -10 ----------- Run | Scr Mat Matter Collected 412 | 270 142 Remotely . | . . Salvage Created 333 | 85 248 Parts 19 | 3 16 Haulers Intercepted . | . . Recyclers Shooed 1 | 1 . Parts Field Recycled . | . . Retrieved Matter . | . . Parts Self-Destructed . | . . Prevented . | . . Kills | -11 -10 ------- Run | Scr Mat Combat Hostiles Destroyed 7 | . 7 Guns 7 | . 7 Classes Destroyed 4 | 1 3 Recycler 1 | 1 . Watcher 1 | . 1 Swarmer 3 | . 3 Grunt 4 | . 4 Best Kill Streak 3 | 1 3 Combat Bots Only 3 | . 3 Max Kills in Single Turn 1 | 1 1 Gunslinging . | . . Exploded . | . . Melee . | . . Uniques/NPCs Destroyed . | . . Combat | -11 -10 -------- Run | Scr Mat Damage Taken 788 | . 788 Core 261 | . 261 Absorbed by Shields . | . . Core Remaining (%) 100 | 100 . Volleys Fired 48 | 4 44 Largest 2 | 1 2 Hottest 60 | 40 60 Shots Fired 88 | 4 84 Gun 88 | 4 84 Cannon . | . . Launcher . | . . Special . | . . Kinetic 44 | . 44 Thermal 36 | 4 32 Explosive . | . . Electromagnetic 8 | . 8 Robot Hit Streak 9 | 4 9 Robot Miss Streak 4 | . 4 Penetration Max . | . . Secondary Targets 3 | . 3 Max Gunslinging Chain 1 | . 1 Shots Hit Robots 55 | 4 51 Core Hits 20 | 2 18 Critical Kills . | . . Critical Parts Destroyed . | . . Critical Strikes . | . . Melee Attacks . | . . Impact . | . . Slashing . | . . Piercing . | . . Sneak Attacks . | . . Combat Hostiles . | . . Follow-up Attacks . | . . Damage Inflicted 656 | 45 611 Guns 643 | 45 598 Cannons . | . . Explosions . | . . Melee . | . . Ramming 13 | . 13 Kinetic 259 | . 259 Thermal 305 | 45 260 Explosive . | . . Electromagnetic 79 | . 79 Impact . | . . Slashing . | . . Piercing . | . . Highest Corruption 1 | . 1 Average Corruption 1 | . 1 Corruption Purged . | . . Corruption Blocked . | . . Effects 8 | . 8 Message Errors 3 | . 3 Matter Fused 2 | . 2 Energy Discharges 2 | . 2 Parts Rejected 1 | . 1 Overload Shots . | . . Overflow Damage . | . . Projectiles . | . . Explosions . | . . Melee . | . . Knockbacks . | . . Impact . | . . Kinetic . | . . Secondary . | . . Self-Inflicted Damage . | . . Shots . | . . Rammed 3 | . 3 Targets Rammed 3 | . 3 Kicked . | . . Crushed . | . . Highest Temperature 32 | . 32 Average Temperature 7 | . 7 Received Heat Transfer 306 | . 306 Siege Activations . | . . Robots Corrupted . | . . Combat Hostiles . | . . Parts Fried . | . . Impact Corruptions . | . . Robots Melted . | . . Combat Hostiles . | . . Parts Melted . | . . Heat Transferred 675 | 100 575 Parts Sabotaged . | . . Parts Stolen . | . . Parts Stripped . | . . Power Chain Reactions . | . . Missiles Intercepted . | . . Alert | -11 -10 ------- Run | Scr Mat Peak Influence 140 | 5 140 Initial 3 | . 3 Average 46 | 3 54 Maximum Alert Level . | . . Low Security (%) 100 | 100 100 Level 1 . | . . Level 2 . | . . Level 3 . | . . Level 4 . | . . Level 5 . | . . High Security . | . . Max Security . | . . Squads Dispatched 1 | . 1 Investigation . | . . Extermination . | . . Reinforcement 1 | . 1 Assault . | . . Garrison . | . . Intercept . | . . Searches Triggered . | . . Construction Impeded . | . . Haulers Reinforced . | . . Active Scanning Responses . | . . Cargo Convoy Interrupts . | . . Stealth | -11 -10 --------- Run | Scr Mat Distress Signals 1 | . 1 Communications Jammed . | . . Distress Signals . | . . Times Spotted 17 | . 17 Peak Tracking Total 4 | . 4 Tactical Retreats 1 | . 1 Traps | -11 -10 ------- Run | Scr Mat Traps Triggered 1 | . 1 Indirectly . | . . Trap Hack Attempts . | . . Triggered . | . . Disarmed . | . . Reprogrammed . | . . Reused . | . . Traps Extracted . | . . Installed . | . . Triggered . | . . Machines | -11 -10 ---------- Run | Scr Mat Machines Disabled . | . . Max in Single Turn . | . . Machines Sabotaged . | . . Garrisons Compromised . | . . Overloaded Fab Kills . | . . Hacking | -11 -10 --------- Run | Scr Mat Machines Accessed 5 | . 5 Terminals 4 | . 4 Fabricators . | . . Repair Stations . | . . Recycling Units 1 | . 1 Scanalyzers . | . . Garrison Access . | . . Total Hacks 11 | . 11 Successful 7 | . 7 Failed 4 | . 4 Catastrophic . | . . Database Lockouts . | . . Manual 6 | . 6 Terminals 10 | . 10 Fabricators . | . . Repair Stations . | . . Recycling Units 1 | . 1 Scanalyzers . | . . Garrison Access . | . . Terminal Hacks 6 | . 6 Record 1 | . 1 Prototype ID Bank 1 | . 1 Level Access Points 1 | . 1 Emergency Access Points 1 | . 1 Alert Level 1 | . 1 Zone Layout 1 | . 1 Fabricator Hacks . | . . Repair Station Hacks . | . . Recycling Unit Hacks 1 | . 1 Report Inventory 1 | . 1 Scanalyzer . | . . Garrison Access Hacks . | . . Unauthorized Hacks . | . . Terminals . | . . Fabricators . | . . Repair Stations . | . . Recycling Units . | . . Scanalyzers . | . . Garrison Access . | . . Data Cores Recovered . | . . Used . | . . Hacking Detections 4 | . 4 Full Trace Events . | . . Feedback Events . | . . Feedback Blocked . | . . Robot Schematics Acquired . | . . Robots Built . | . . Authchips . | . . Time . | . . Total Robot Build Rating . | . . Part Schematics Acquired . | . . Parts Built . | . . Authchips . | . . Time . | . . Total Part Build Rating . | . . Parts Repaired . | . . Time . | . . Parts Recycled . | . . Recycled Matter . | . . Retrieved Matter . | . . Retrieved Components . | . . Parts Scanalyzed . | . . Part Schematics Acquired . | . . Parts Damaged . | . . Bothacking | -11 -10 ------------ Run | Scr Mat Used RIF Installer . | . . Robots Hacked . | . . Non-combat . | . . Combat . | . . Robot Hacks Applied . | . . Relay Couplers Released . | . . Fabnet Peak Effective % . | . . Robots Rewired . | . . Allies Hacked . | . . Hacks Repelled . | . . Allies | -11 -10 -------- Run | Scr Mat Total Allies . | . . Largest Group . | . . Highest-Rated Group . | . . Highest-Rated Ally . | . . Total Orders . | . . Ally Attacks . | . . Total Damage . | . . Kills . | . . Allies Corrupted . | . . Allies Melted . | . . Intel | -11 -10 ------- Run | Scr Mat Robot Analysis Total . | . . Derelict Logs Recovered . | . . Drone Launches . | . . Drone Recoveries . | . . Exploration | -11 -10 ------------- Run | Scr Mat Turns Passed 1031 | 161 870 Spaces Moved 551 | 95 456 Core 11 | 11 . Treads 534 | 78 456 Legs . | . . Wheels 6 | 6 . Hover . | . . Flight . | . . Fastest Speed 50 | 50 160 Average Speed 157 | 143 160 Slowest Speed 160 | 160 160 Overloaded Moves . | . . Propulsion Burnouts . | . . Robots Hopped . | . . Cave-ins Triggered . | . . Exploration Rate (%) 40 | 6 74 Regions Visited 1 Branch Regions . Pre-discovered Areas . | . . Known Exits Taken . | . . Unknown Exits Taken 1 | 1 . Scrap Searched . | . . Spaces Dug . | . . Terrain Destroyed . | . . Melee . | . . Projectile . | . . AOE . | . . Terrain Rammed . | . . Walls Destroyed . | . . Machines Disabled . | . . Actions | -11 -10 --------- Run | Scr Mat Total 629 | 115 514 Wait . | . . Move 550 | 94 456 Hop . | . . Pick Up 14 | 9 5 Fast Attach 1 | 1 . Attach 9 | 5 4 Detach . | . . Swap 1 | 1 . Drop 3 | 1 2 Fire 48 | 4 44 Melee . | . . Ram . | . . Kick . | . . Crush 3 | . 3 Escape Stasis . | . . Rewire . | . . Trap . | . . Miscellaneous . | . . Route ------- -11/Scrapyard -10/Materials (discovered 4 exits: *Mat x3 / [*Min]) History --------- Turn | Location | Event 10 | -11/Scrapyard | Discovered new exit (range 15) 162 | -11/Scrapyard | Entered Materials 246 | -10/Materials | Identified exit to Materials 307 | -10/Materials | Build established: Mutant 433 | -10/Materials | Discovered new exit (range 16) 720 | -10/Materials | Core integrity fell below 50% 994 | -10/Materials | Core integrity fell below 20% 1023 | -10/Materials | Lost 3 parts (1n2w) 1032 | -10/Materials | Destroyed by G-34 Mercenary with Small Laser Last Messages --------------- 00882_ Acquired EM Pulse Gun. 00902_ K-01 Serf destroyed. 00905_ T-07 Excavator destroyed. 00910_ Acquired 12 matter. 00978_ Lgt. Treads destroyed. 00985_ Sml. Laser destroyed. 00992_ Assault Rifle destroyed. 00995_ G-47 Trooper destroyed. 00995_ Switching to secondary target: G-34 Mercenary. 00998_ G-34 Mercenary destroyed. 01000_ R-06 Scavenger collects Corrupted Heat Sink. 01004_ Acquired 34 matter. 01004_ R-06 Scavenger collects Ion Engine. 01007_ Acquired Particle Gun. 01016_ A-02 Transporter sends out distress signal. 01025_ R-06 Scavenger collects Aluminum Leg. 01028_ R-06 Scavenger collects Imp. Heat Sink. 01030_ Lgt. Treads destroyed. 01030_ G-34 Mercenary destroyed. 01030_ Door malfunctions. Map ----- +----------------------------------------------------+ | ?????????????????????????????????????????? | | ?????????????????????????????????????????? | | ?????????????????????????????????????????? | | ###??????????????????????????????????????? | | #??????????????????????????????????????? | | #??????????????????????????????????????? | | #??????????????????????????????????????? | | #####??????????????????????????????????? | | # #??????????????????????????????????? | | # < #??????????????????????????????????? | | # #??????????????????????????????????? | | + ###########??????????#?????????????? | | # ?????? ?????????????? | | ### ?????? ?????????????? | | ### ############????????/##????????????? | | #???????????????????a ?????????????? | | ### #???????????????? ?????????????? | | # #??????????????? """ ?????????????? | | " # +????????????????""" ?????????????? | | " # #????????????????""" ??????????????? | | + #???????????????? g???????######## | | " # #????????????????? ???????# # | | " # #?????????????????*%=???????# """# | | " # #?????????????????#/#???????# """# | | # #?????????????????#!#???????# """# | | ### ##########+########@######### """# | | ## # """# | | / r + # | | ## % # """# | | ###+################### ###### # """# | | #?? ?????????????????# #????# # """# | | #?? ?????????????????# #????# # """# | | #?? ?????????????????# #????# # """# | | #?? ????????????????? ????# # # | | #?? ???????????????? < ????# ######## | | ##?? ??????????????? ????# #??????? | | ????????????????????# ####????# #??????? | | ????????????????????# ????????# #??????? | | ????????????????????# ????????# #??????? | | #???????????????????+ ????????# #??????? | | ## ??????????????# ?????????# #??????? | | ######??????????????#? ?????????# #??????? | | #???????????????????????????????# #??????? | | #???????????????????????????????# #??????? | | #???????????????????????????????# #??????? | | #???????????????????????????????# #??????? | | #####################???????????# #??????? | | ??????????# #??????? | | % ??????????# #??????? | | % ??????????# #??????? | +----------------------------------------------------+ Best States ------------- Heat Dissipation 25 Energy Generation 10 Energy Capacity 125 Matter Stores 300 Matter Capacity 300 Sight Range 16 Terrain Scan Density 10 Evasion (%) 50 Recoil Reduction 2 Item Schematics ----------------- None Robot Schematics ------------------ None Fabricated ------------ Nothing Alien Tech Used ----------------- None Achievements -------------- None Challenges ------------ None Game ------ Seed KineticDynamicDriver Manual? 0 Play Time 00:17:40 Cumulative 4.2 hours Start 2022.12.12 @ 05:09:52 End 2022.12.12 @ 05:25:52 Sessions 1 Manual Loads 0 Difficulty Rogue Special Mode None Game No. 19 Rogue 19 Adventurer 0 Explorer 0 Win Type - Total 0 Types 0/0/0/0/0/0/0/0/0 Lore% 7 Gallery% 5 Achievement% 6 Wizard Run 0 Options --------- ASCII 0 Keyboard 0 Movement Arrows Keybinds 0 Fullscreen 1 Font 18/SmallcapsGlow Map View 76x50 Tactical HUD 1 Map Filters NONE Filters NONE Steam 1 RUN: 27419832-6183-4b8c-976c-47ab95dd92c2